fUST/lending_fUST_20240809
["ID","MTS","AMOUNT","RATE_DAILY","PERIOD"]
[334481403,1723155038477,-157.91149328,0.0002,2]
[334481404,1723155038489,-154.94664795,0.0002,2]
[334481405,1723155038499,-545.76851484,0.0002,2]
[334481406,1723155038509,-435.0,0.0002,2]
[334481407,1723155038519,-21398.30347309,0.0002,2]
[334481408,1723155038534,-294.2333485,0.0002,2]
[334481409,1723155038545,-150.112234,0.0002,2]
[334481410,1723155038555,-183.10678503,0.0002028,2]
[334481411,1723155038564,-160.253275,0.00020707,2]
[334481412,1723155038575,-171.5532497,0.0002098,2]
[334481413,1723155038585,-297.10158211,0.00021,2]
[334481414,1723155038594,-781.58,0.0002135,3]
[334481415,1723155038605,-2758.54,0.0002136,3]
[334481416,1723155038615,-1563.18,0.0002136,3]
[334481417,1723155038625,-390.8,0.0002136,3]
[334481418,1723155038634,-263.68278929,0.00021805,2]
[334481419,1723155038643,-166.1752696,0.00021905,2]
[334481420,1723155038653,-154.80649189,0.00021916,2]
[334481421,1723155038663,-333.19323305,0.00022,2]
[334481422,1723155038673,-881.97401853,0.0002217,2]
[334481423,1723155038682,-150.112233,0.000226,2]
[334481424,1723155038692,-621.7406026,0.00022957,2]
[334481425,1723155038702,-954.55259497,0.00023943,2]
[334481426,1723155038712,-4350.92455896,0.00024,30]
[334481427,1723155038723,-620.08703013,0.00024105,2]
[334481428,1723155038733,-2605.08504403,0.000245,2]
[334481429,1723155038747,-5128.19474419,0.00024703,2]
[334481430,1723155038757,-17996.04139673,0.0002487,2]
[334481431,1723155038766,-153.0,0.00024879,2]
[334481432,1723155038776,-153.0,0.00024879,2]
[334481433,1723155038785,-57424.55545831,0.00024956,11]
[334481434,1723155038794,-37988.8008032,0.00024956,3]
[334481435,1723155038803,-320.06058595,0.00024989,2]
[334481437,1723155038813,-500.0,0.00024989,2]
[334481439,1723155038822,-198.55798383,0.00024989,2]
[334481441,1723155038832,-500.0,0.00024989,2]
[334481443,1723155038841,-500.0,0.00024989,2]
[334481445,1723155038851,-260.79126149,0.00024989,2]
[334481447,1723155038860,-500.0,0.00024989,2]
[334481449,1723155038870,-500.0,0.00024989,2]
[334481451,1723155038879,-500.0,0.00024989,2]
[334481453,1723155038888,-500.0,0.00024989,2]
[334481455,1723155038898,-500.0,0.00024989,2]
[334481457,1723155038908,-500.0,0.00024989,2]
[334481459,1723155038918,-500.0,0.00024989,2]
[334481461,1723155038927,-500.0,0.00024989,2]
[334481463,1723155038937,-500.0,0.00024989,2]
[334481465,1723155038946,-500.0,0.00024989,2]
[334481467,1723155038956,-500.0,0.00024989,2]
[334481469,1723155038967,-500.0,0.00024989,2]
[334481471,1723155038976,-500.0,0.00024989,2]
[334481473,1723155038986,-258.99362151,0.00024989,2]
[334481475,1723155039002,-37988.8008032,0.0002499,3]
[334481476,1723155039011,-37988.8008032,0.0002499,3]
[334481479,1723155039023,-23201.42953338,0.00025,30]
[334481481,1723155039033,-402.58073778,0.00025,2]
[334481483,1723155039043,-500.0,0.00025,2]
[334481485,1723155039055,-299.4439556,0.00025,2]
[334481487,1723155039065,-5128.19474419,0.00025028,2]
[334481489,1723155039075,-150.112233,0.000251,8]
[334481491,1723155039084,-636.72762975,0.0002514,2]
[334481493,1723155039094,-620.00435151,0.0002531,2]
[334481495,1723155039104,-5128.19474419,0.00025321,2]
[334481497,1723155039113,-153.0,0.00025368,2]
[334481499,1723155039123,-153.0,0.00025368,2]
[334481501,1723155039133,-153.0,0.00025368,2]
[334481503,1723155039145,-153.0,0.00025368,2]
[334481505,1723155039155,-153.0,0.00025368,2]
[334481507,1723155039166,-153.0,0.00025368,2]
[334481509,1723155039175,-153.0,0.00025368,2]
[334481511,1723155039186,-153.0,0.00025368,2]
[334481513,1723155039196,-153.0,0.00025368,2]
[334481515,1723155039206,-153.0,0.00025368,2]
[334481517,1723155039215,-153.0,0.00025368,2]
[334481519,1723155039225,-153.0,0.00025368,2]
[334481521,1723155039235,-153.0,0.00025368,2]
[334481523,1723155039248,-153.0,0.00025368,2]
[334481526,1723155039259,-153.0,0.00025371,2]
[334481528,1723155039269,-153.0,0.00025371,2]
[334481530,1723155039278,-37988.8008032,0.00025466,3]
[334481532,1723155039288,-17996.0413967,0.00025477,2]
[334481534,1723155039298,-5128.19474419,0.00025606,2]
[334481537,1723155039308,-5128.19474419,0.00025785,2]
[334481540,1723155039319,-1532.749,0.0002601,2]
[334481543,1723155039329,-200.0,0.00026027,2]
[334481546,1723155039340,-37988.8008032,0.00026073,3]
[334481549,1723155039350,-17996.0413967,0.00026083,2]
[334481551,1723155039360,-5128.19474419,0.0002619,2]
[334481553,1723155039370,-5128.19474419,0.00026386,2]
[334481555,1723155039380,-37988.8008032,0.00026564,3]
[334481557,1723155039389,-472.12044886,0.00026575,2]
[334481559,1723155039399,-160.64700877,0.00026583,2]
[334481561,1723155039408,-5128.19474419,0.00026588,2]
[334481563,1723155039420,-1363.91466198,0.00026599,2]
[334481565,1723155039430,-302.72750299,0.00026658,10]
[334481567,1723155039441,-17996.0413967,0.0002669,2]
[334481569,1723155039451,-153.0,0.00026849,2]
[334481571,1723155039461,-153.0,0.00026849,2]
[334481573,1723155039470,-153.0,0.00026849,2]
[334481575,1723155039480,-153.0,0.00026849,2]
[334481577,1723155039493,-153.0,0.00026849,2]
[334481579,1723155039502,-153.0,0.00026849,2]
[334481581,1723155039512,-153.0,0.00026849,2]
[334481584,1723155039523,-150.112233,0.000269,6]
[334481586,1723155039535,-3000.0,0.000269,2]
[334481588,1723155039545,-1626.61800287,0.000269,2]
[334481590,1723155039555,-154.79103211,0.000269,2]
[334481592,1723155039564,-189.63844992,0.000269,2]
[334481594,1723155039574,-5128.19474419,0.00026902,2]
[334481596,1723155039583,-3000.0,0.0002691,2]
[334481598,1723155039593,-3000.0,0.0002692,2]
[334481599,1723155039602,-3000.0,0.0002693,2]
[334481601,1723155039614,-3000.0,0.0002694,2]
[334481603,1723155039624,-3000.0,0.0002695,2]
[334481606,1723155039634,-3000.0,0.0002696,2]
[334481607,1723155039643,-3000.0,0.0002697,2]
[334481609,1723155039653,-3000.0,0.0002698,2]
[334481612,1723155039663,-3000.0,0.0002699,2]
[334481614,1723155039672,-1262.406341,0.00027,2]
[334481616,1723155039681,-3000.0,0.00027,2]
[334481618,1723155039691,-187.0,0.00027,2]
[334481620,1723155039700,-173.0,0.00027,2]
[334481622,1723155039710,-3000.0,0.0002701,2]
[334481624,1723155039719,-3000.0,0.0002702,2]
[334481626,1723155039729,-3000.0,0.0002703,2]
[334481628,1723155039738,-3000.0,0.0002704,2]
[334481630,1723155039748,-3000.0,0.0002705,2]
[334481632,1723155039757,-3000.0,0.0002706,2]
[334481634,1723155039766,-3000.0,0.0002707,2]
[334481636,1723155039776,-3000.0,0.0002708,2]
[334481638,1723155039786,-3000.0,0.0002709,2]
[334481640,1723155039795,-755.28461468,0.0002709,2]
[334481642,1723155039804,-150.112233,0.000271,5]
[334481644,1723155039814,-3000.0,0.000271,2]
[334481646,1723155039823,-3000.0,0.0002711,2]
[334481648,1723155039833,-4110.59549,0.0002712,2]
[334481650,1723155039842,-414.343453,0.00027123,2]
[334481652,1723155039852,-207.1717265,0.00027123,2]
[334481654,1723155039861,-207.1717265,0.00027123,2]
[334481656,1723155039871,-411.9550516,0.00027123,2]
[334481658,1723155039880,-207.1717265,0.00027123,2]
[334481660,1723155039890,-160.253275,0.00027167,2]
[334481662,1723155039900,-150.112233,0.000272,7]
[334481664,1723155039909,-150.0,0.00027237,2]
[334481666,1723155039918,-507.0,0.00027237,2]
[334481668,1723155039928,-153.0,0.0002726,2]
[334481670,1723155039937,-153.0,0.0002726,2]
[334481672,1723155039947,-5128.19474419,0.00027262,2]
[334481674,1723155039956,-17996.0413967,0.00027296,2]
[334481676,1723155039966,-2000.0,0.00027297,2]
[334481678,1723155039975,-2000.0,0.00027297,2]
[334481680,1723155039984,-150.112233,0.000273,9]
[334481682,1723155039995,-200.0,0.00027373,2]
[334481684,1723155040004,-200.0,0.00027373,2]
[334481686,1723155040013,-305.65463372,0.00027396,2]
[334481688,1723155040023,-160.0,0.00027396,10]
[334481690,1723155040033,-1000.0,0.00027396,2]
[334481692,1723155040043,-500.0,0.00027397,7]
[334481694,1723155040051,-500.0,0.00027397,7]
[334481696,1723155040060,-500.0,0.00027397,7]
[334481698,1723155040069,-358.73147226,0.00027397,7]
[334481700,1723155040079,-500.0,0.00027397,7]
[334481703,1723155040088,-500.0,0.00027397,7]
[334481705,1723155040097,-500.0,0.00027397,7]
[334481707,1723155040106,-500.0,0.00027397,7]
[334481709,1723155040115,-157.32495238,0.00027397,7]
[334481711,1723155040125,-500.0,0.00027397,7]
[334481713,1723155040134,-500.0,0.00027397,7]
[334481715,1723155040144,-500.0,0.00027397,7]
[334481717,1723155040153,-500.0,0.00027397,7]
[334481719,1723155040162,-500.0,0.00027397,7]
[334481721,1723155040171,-500.0,0.00027397,7]
[334481723,1723155040180,-786.65,0.00027397,7]
[334481725,1723155040189,-500.0,0.00027397,7]
[334481727,1723155040199,-500.0,0.00027397,7]
[334481729,1723155040208,-500.0,0.00027397,7]
[334481731,1723155040218,-519.22,0.00027397,7]
[334481733,1723155040227,-596.84,0.00027397,7]
[334481735,1723155040237,-502.51157685,0.00027397,7]
[334481737,1723155040247,-257.12993645,0.00027397,7]
[334481739,1723155040256,-500.0,0.00027397,7]
[334481741,1723155040265,-500.0,0.00027397,7]
[334481743,1723155040274,-500.0,0.00027397,7]
[334481745,1723155040283,-452.15993135,0.00027397,7]
[334481747,1723155040293,-500.0,0.00027397,7]
[334481749,1723155040302,-500.0,0.00027397,7]
[334481751,1723155040311,-500.0,0.00027397,7]
[334481753,1723155040320,-894.58,0.00027397,7]
[334481756,1723155040330,-500.0,0.00027397,7]
[334481757,1723155040339,-500.0,0.00027397,7]
[334481760,1723155040348,-500.0,0.00027397,7]
[334481762,1723155040357,-500.0,0.00027397,7]
[334481764,1723155040366,-500.0,0.00027397,7]
[334481765,1723155040375,-500.0,0.00027397,7]
[334481766,1723155040384,-500.0,0.00027397,7]
[334481767,1723155040393,-560.09808393,0.00027397,7]
[334481768,1723155040402,-500.0,0.00027397,2]
[334481769,1723155040412,-500.0,0.00027397,7]
[334481770,1723155040421,-500.0,0.00027397,7]
[334481771,1723155040431,-500.0,0.00027397,7]
[334481772,1723155040441,-500.0,0.00027397,7]
[334481773,1723155040451,-500.0,0.00027397,7]
[334481774,1723155040460,-500.0,0.00027397,7]
[334481775,1723155040470,-500.0,0.00027397,7]
[334481776,1723155040479,-500.0,0.00027397,7]
[334481777,1723155040490,-500.0,0.00027397,7]
[334481778,1723155040499,-517.44,0.00027397,7]
[334481779,1723155040509,-500.0,0.00027397,7]
[334481780,1723155040518,-562.299882,0.00027397,7]
[334481782,1723155040529,-500.0,0.00027397,7]
[334481784,1723155040544,-500.0,0.00027397,7]
[334481786,1723155040554,-592.2,0.00027397,7]
[334481788,1723155040564,-500.0,0.00027397,7]
[334481790,1723155040575,-500.0,0.00027397,7]
[334481792,1723155040584,-500.0,0.00027397,7]
[334481794,1723155040594,-500.0,0.00027397,7]
[334481813,1723155040763,-500.0,0.00027397,7]
[334481815,1723155040773,-500.0,0.00027397,7]
[334481817,1723155040783,-500.0,0.00027397,7]
[334481819,1723155040792,-532.05,0.00027397,7]
[334481821,1723155040801,-200.0,0.00027397,7]
[334481823,1723155040810,-500.0,0.00027397,7]
[334481825,1723155040820,-500.0,0.00027397,7]
[334481827,1723155040829,-500.0,0.00027397,7]
[334481829,1723155040838,-500.0,0.00027397,7]
[334481831,1723155040848,-561.69,0.00027397,7]
[334481833,1723155040857,-500.0,0.00027397,7]
[334481835,1723155040866,-500.0,0.00027397,7]
[334481837,1723155040875,-500.0,0.00027397,7]
[334481839,1723155040885,-500.0,0.00027397,7]
[334481841,1723155040894,-500.0,0.00027397,7]
[334481843,1723155040903,-500.0,0.00027397,7]
[334481845,1723155040912,-500.0,0.00027397,7]
[334481847,1723155040921,-611.93,0.00027397,7]
[334481849,1723155040931,-500.0,0.00027397,7]
[334481851,1723155040941,-500.0,0.00027397,7]
[334481853,1723155040950,-528.8,0.00027397,7]
[334481855,1723155040959,-500.0,0.00027397,7]
[334481857,1723155040968,-500.0,0.00027397,7]
[334481859,1723155040977,-500.0,0.00027397,7]
[334481861,1723155040988,-500.0,0.00027397,7]
[334481863,1723155040997,-500.0,0.00027397,7]
[334481865,1723155041007,-500.0,0.00027397,7]
[334481867,1723155041016,-500.0,0.00027397,7]
[334481869,1723155041025,-591.48,0.00027397,7]
[334481871,1723155041035,-813.34,0.00027397,7]
[334481873,1723155041045,-500.0,0.00027397,7]
[334481875,1723155041055,-694.65,0.00027397,7]
[334481877,1723155041064,-882.85,0.00027397,7]
[334481879,1723155041074,-500.0,0.00027397,7]
[334481881,1723155041083,-500.0,0.00027397,7]
[334481883,1723155041093,-500.0,0.00027397,7]
[334481885,1723155041102,-500.0,0.00027397,7]
[334481887,1723155041112,-562.05,0.00027397,7]
[334481889,1723155041121,-500.0,0.00027397,7]
[334481891,1723155041131,-500.0,0.00027397,7]
[334481893,1723155041143,-500.0,0.00027397,7]
[334481895,1723155041152,-500.0,0.00027397,7]
[334481897,1723155041161,-500.0,0.00027397,7]
[334481900,1723155041171,-500.0,0.00027397,7]
[334481902,1723155041180,-855.66,0.00027397,7]
[334481904,1723155041189,-500.0,0.00027397,7]
[334481906,1723155041198,-500.0,0.00027397,7]
[334481908,1723155041207,-500.0,0.00027397,7]
[334481910,1723155041216,-500.0,0.00027397,7]
[334481912,1723155041226,-500.0,0.00027397,7]
[334481914,1723155041235,-500.0,0.00027397,7]
[334481916,1723155041246,-500.0,0.00027397,7]
[334481918,1723155041255,-500.0,0.00027397,7]
[334481920,1723155041264,-500.0,0.00027397,7]
[334481922,1723155041274,-500.0,0.00027397,7]
[334481924,1723155041283,-500.0,0.00027397,7]
[334481926,1723155041294,-500.0,0.00027397,7]
[334481928,1723155041303,-500.0,0.00027397,7]
[334481930,1723155041312,-500.0,0.00027397,7]
[334481932,1723155041321,-694.13,0.00027397,7]
[334481933,1723155041330,-500.0,0.00027397,7]
[334481935,1723155041339,-665.99,0.00027397,7]
[334481937,1723155041348,-500.0,0.00027397,7]
[334481939,1723155041357,-500.0,0.00027397,7]
[334481941,1723155041366,-500.0,0.00027397,7]
[334481943,1723155041375,-500.0,0.00027397,7]
[334481945,1723155041384,-500.0,0.00027397,7]
[334481947,1723155041394,-500.0,0.00027397,7]
[334481949,1723155041403,-500.0,0.00027397,7]
[334481951,1723155041412,-1067.39,0.00027397,7]
[334481954,1723155041421,-500.0,0.00027397,7]
[334481956,1723155041430,-1187.54,0.00027397,7]
[334481958,1723155041440,-500.0,0.00027397,7]
[334481960,1723155041449,-766.78,0.00027397,7]
[334481962,1723155041461,-561.33,0.00027397,7]
[334481964,1723155041471,-500.0,0.00027397,7]
[334481966,1723155041480,-500.0,0.00027397,7]
[334481968,1723155041491,-500.0,0.00027397,7]
[334481970,1723155041500,-500.0,0.00027397,7]
[334481972,1723155041510,-500.0,0.00027397,7]
[334481974,1723155041520,-1200.45,0.00027397,7]
[334481976,1723155041536,-672.91,0.00027397,7]
[334481978,1723155041546,-500.0,0.00027397,7]
[334481980,1723155041556,-500.0,0.00027397,7]
[334481982,1723155041567,-500.0,0.00027397,7]
[334481984,1723155041576,-500.0,0.00027397,7]
[334481986,1723155041586,-603.25,0.00027397,7]
[334481988,1723155041595,-1165.24,0.00027397,7]
[334481990,1723155041604,-534.67,0.00027397,7]
[334481992,1723155041616,-500.0,0.00027397,7]
[334481994,1723155041625,-517.32934099,0.00027397,7]
[334481996,1723155041635,-500.0,0.00027397,7]
[334481998,1723155041646,-500.0,0.00027397,7]
[334482000,1723155041655,-500.0,0.00027397,7]
[334482002,1723155041664,-501.04256428,0.00027397,7]
[334482004,1723155041673,-500.0,0.00027397,7]
[334482006,1723155041683,-500.0,0.00027397,7]
[334482008,1723155041692,-500.0,0.00027397,7]
[334482010,1723155041702,-998.43,0.00027397,7]
[334482012,1723155041712,-707.98,0.00027397,7]
[334482015,1723155041722,-500.0,0.00027397,7]
[334482018,1723155041732,-698.67,0.00027397,7]
[334482021,1723155041745,-500.0,0.00027397,7]
[334482024,1723155041754,-500.0,0.00027397,7]
[334482027,1723155041763,-2028.42,0.00027397,7]
[334482030,1723155041772,-500.0,0.00027397,7]
[334482033,1723155041782,-537.28,0.00027397,7]
[334482035,1723155041793,-983.98,0.00027397,7]
[334482037,1723155041802,-500.0,0.00027397,7]
[334482039,1723155041811,-500.0,0.00027397,7]
[334482041,1723155041820,-500.0,0.00027397,7]
[334482043,1723155041830,-500.0,0.00027397,7]
[334482045,1723155041839,-731.92,0.00027397,7]
[334482047,1723155041849,-500.0,0.00027397,7]
[334482049,1723155041859,-1342.2,0.00027397,7]
[334482051,1723155041868,-500.0,0.00027397,7]
[334482053,1723155041878,-1069.79509486,0.00027397,7]
[334482062,1723155041923,-219.55490514,0.00027397,7]
[334482064,1723155041932,-500.0,0.00027397,7]
[334482066,1723155041941,-586.99253303,0.00027397,7]
[334482068,1723155041953,-226.51614372,0.00027397,7]
[334482070,1723155041963,-668.1,0.00027397,7]
[334482072,1723155041972,-172.19028353,0.00027397,7]
[334482074,1723155041981,-569.08,0.00027397,7]
[334482076,1723155041996,-500.0,0.00027397,7]
[334482078,1723155042006,-500.0,0.00027397,7]
[334482080,1723155042015,-500.0,0.00027397,7]
[334482082,1723155042024,-1405.69,0.00027397,7]
[334482084,1723155042033,-500.0,0.00027397,7]
[334482086,1723155042043,-506.69,0.00027397,7]
[334482088,1723155042052,-500.0,0.00027397,7]
[334482090,1723155042061,-500.0,0.00027397,7]
[334482092,1723155042070,-487.14614003,0.00027397,7]
[334482094,1723155042080,-1791.22,0.00027397,7]
[334482096,1723155042090,-500.0,0.00027397,7]
[334482098,1723155042099,-634.41,0.00027397,7]
[334482100,1723155042108,-1439.63,0.00027397,7]
[334482102,1723155042118,-500.0,0.00027397,7]
[334482104,1723155042127,-500.0,0.00027397,7]
[334482106,1723155042137,-5205.50159455,0.00027397,7]
[334482212,1723155042817,-494.46439567,0.00017379,2]
[334482214,1723155042826,-2387.93840545,0.00027397,7]
[334482216,1723155042837,-500.0,0.00027397,7]
[334482218,1723155042845,-500.0,0.00027397,7]
[334482220,1723155042854,-163.03,0.00027397,7]
[334482222,1723155042864,-500.0,0.00027397,7]
[334482224,1723155042872,-500.0,0.00027397,7]
[334482226,1723155042882,-500.0,0.00027397,7]
[334482228,1723155042892,-1680.41,0.00027397,7]
[334482230,1723155042901,-2347.15,0.00027397,7]
[334482232,1723155042910,-500.0,0.00027397,7]
[334482234,1723155042920,-1226.78,0.00027397,7]
[334482237,1723155042929,-500.0,0.00027397,7]
[334482239,1723155042938,-500.0,0.00027397,7]
[334482241,1723155042947,-1252.57,0.00027397,7]
[334482243,1723155042957,-500.0,0.00027397,7]
[334482245,1723155042966,-4707.39,0.00027397,7]
[334482247,1723155042975,-500.0,0.00027397,7]
[334482249,1723155042984,-798.08,0.00027397,7]
[334482251,1723155042995,-500.0,0.00027397,7]
[334482253,1723155043004,-500.0,0.00027397,7]
[334482256,1723155043013,-500.0,0.00027397,7]
[334482259,1723155043022,-500.0,0.00027397,7]
[334482261,1723155043031,-554.05,0.00027397,7]
[334482264,1723155043040,-500.0,0.00027397,7]
[334482267,1723155043049,-2548.62,0.00027397,7]
[334482269,1723155043059,-500.0,0.00027397,7]
[334482271,1723155043068,-500.0,0.00027397,7]
[334482273,1723155043077,-530.8,0.00027397,7]
[334482275,1723155043086,-4415.21,0.00027397,7]
[334482277,1723155043096,-1311.47,0.00027397,7]
[334482279,1723155043104,-500.0,0.00027397,7]
[334482281,1723155043113,-500.0,0.00027397,7]
[334482283,1723155043122,-500.0,0.00027397,7]
[334482285,1723155043132,-500.0,0.00027397,7]
[334482287,1723155043141,-576.31079319,0.00027397,7]
[334482289,1723155043150,-564.42,0.00027397,7]
[334482291,1723155043159,-718.28,0.00027397,7]
[334482293,1723155043168,-689.04,0.00027397,7]
[334482295,1723155043178,-525.55163915,0.00027397,7]
[334482297,1723155043187,-500.0,0.00027397,7]
[334482299,1723155043196,-885.48,0.00027397,7]
[334482301,1723155043206,-500.0,0.00027397,7]
[334482303,1723155043215,-500.0,0.00027397,7]
[334482305,1723155043223,-500.0,0.00027397,7]
[334482307,1723155043233,-500.0,0.00027397,7]
[334482309,1723155043250,-500.0,0.00027397,7]
[334482311,1723155043260,-725.32,0.00027397,7]
[334482313,1723155043269,-500.0,0.00027397,7]
[334482315,1723155043279,-500.0,0.00027397,2]
[334482317,1723155043289,-647.05,0.00027397,7]
[334482319,1723155043299,-500.0,0.00027397,7]
[334482321,1723155043308,-827.56,0.00027397,7]
[334482323,1723155043318,-710.55,0.00027397,7]
[334482325,1723155043327,-500.0,0.00027397,7]
[334482327,1723155043336,-500.0,0.00027397,7]
[334482329,1723155043346,-500.0,0.00027397,7]
[334482331,1723155043355,-1704.83,0.00027397,7]
[334482333,1723155043365,-539.76,0.00027397,7]
[334482335,1723155043374,-500.0,0.00027397,7]
[334482337,1723155043383,-500.0,0.00027397,7]
[334482339,1723155043393,-500.0,0.00027397,7]
[334482341,1723155043402,-1123.44,0.00027397,7]
[334482343,1723155043412,-569.07,0.00027397,7]
[334482345,1723155043421,-500.0,0.00027397,7]
[334482347,1723155043431,-3288.62,0.00027397,7]
[334482349,1723155043440,-580.8,0.00027397,7]
[334482351,1723155043450,-1133.95,0.00027397,7]
[334482353,1723155043460,-500.0,0.00027397,7]
[334482355,1723155043470,-500.0,0.00027397,7]
[334482357,1723155043479,-500.0,0.00027397,7]
[334482359,1723155043489,-888.74,0.00027397,7]
[334482361,1723155043499,-500.0,0.00027397,7]
[334482363,1723155043509,-1563.12,0.00027397,7]
[334482365,1723155043518,-500.0,0.00027397,7]
[334482367,1723155043528,-696.82,0.00027397,7]
[334482369,1723155043542,-3452.0,0.00027397,7]
[334482370,1723155043552,-567.75,0.00027397,7]
[334482371,1723155043561,-500.0,0.00027397,7]
[334482372,1723155043571,-500.0,0.00027397,7]
[334482373,1723155043580,-500.0,0.00027397,7]
[334482374,1723155043590,-963.72,0.00027397,7]
[334482375,1723155043599,-500.0,0.00027397,7]
[334482376,1723155043610,-500.0,0.00027397,7]
[334482377,1723155043620,-640.18,0.00027397,7]
[334482378,1723155043630,-153.0,0.00027397,2]
[334482379,1723155043639,-5128.19474419,0.00027453,2]
[334482380,1723155043648,-150.112233,0.000275,9]
[334482381,1723155043662,-151.0,0.00027571,7]
[334482383,1723155043671,-151.0,0.00027571,7]
[334482385,1723155043680,-288.445402,0.00027571,7]
[334482387,1723155043690,-151.0,0.00027571,7]
[334482389,1723155043700,-151.0,0.00027571,7]
[334482391,1723155043710,-151.0,0.00027571,7]
[334482393,1723155043719,-151.0,0.00027571,7]
[334482395,1723155043729,-151.0,0.00027571,7]
[334482397,1723155043739,-151.0,0.00027571,7]
[334482399,1723155043748,-151.0,0.00027571,7]
[334482401,1723155043758,-296.42748,0.00027571,7]
[334482403,1723155043767,-151.0,0.00027571,7]
[334482405,1723155043776,-176.526805,0.00027571,7]
[334482407,1723155043786,-176.526805,0.00027571,7]
[334482409,1723155043795,-210.0717,0.00027571,7]
[334482411,1723155043805,-210.0717,0.00027571,7]
[334482412,1723155043814,-500.0,0.00027586,2]
[334482415,1723155043825,-150.112233,0.000276,5]
[334482417,1723155043836,-153.0,0.00027616,2]
[334482419,1723155043845,-153.0,0.00027616,2]
[334482421,1723155043855,-588.994205,0.00027616,2]
[334482423,1723155043864,-542.7372324,0.00027616,2]
[334482425,1723155043874,-153.0,0.00027628,2]
[334482427,1723155043883,-153.0,0.00027628,2]
[334482429,1723155043892,-153.0,0.00027628,2]
[334482431,1723155043902,-500.0,0.00027671,7]
[334482433,1723155043911,-500.0,0.00027671,7]
[334482435,1723155043920,-500.0,0.00027671,7]
[334482437,1723155043929,-500.0,0.00027671,7]
[334482439,1723155043938,-500.0,0.00027671,7]
[334482441,1723155043948,-500.0,0.00027671,7]
[334482444,1723155043957,-500.0,0.00027671,7]
[334482446,1723155043966,-500.0,0.00027671,7]
[334482447,1723155043976,-500.0,0.00027671,7]
[334482450,1723155043985,-400.66028508,0.00027671,7]
[334482451,1723155043996,-500.0,0.00027671,7]
[334482453,1723155044005,-500.0,0.00027671,7]
[334482455,1723155044014,-500.0,0.00027671,7]
[334482457,1723155044023,-786.65,0.00027671,7]
[334482459,1723155044032,-500.0,0.00027671,7]
[334482461,1723155044041,-500.0,0.00027671,7]
[334482463,1723155044051,-519.22,0.00027671,7]
[334482465,1723155044060,-596.84,0.00027671,7]
[334482467,1723155044069,-500.0,0.00027671,7]
[334482469,1723155044079,-500.0,0.00027671,7]
[334482471,1723155044090,-500.0,0.00027671,7]
[334482473,1723155044099,-500.0,0.00027671,7]
[334482475,1723155044108,-500.0,0.00027671,7]
[334482477,1723155044118,-500.0,0.00027671,7]
[334482479,1723155044127,-894.58,0.00027671,7]
[334482481,1723155044136,-500.0,0.00027671,7]
[334482483,1723155044145,-500.0,0.00027671,7]
[334482485,1723155044154,-500.0,0.00027671,7]
[334482487,1723155044163,-500.0,0.00027671,7]
[334482490,1723155044174,-500.0,0.00027671,7]
[334482492,1723155044183,-500.0,0.00027671,7]